Workbook

Sheet لوحة المعلومات
C1: ="لوحة معلومات اللياقة البدنية لـ - "&Name -> لوحة معلومات اللياقة البدنية لـ - جاكلين حداد
B2: الوزن (بالرطل) | J2: حجم الجسم (بالبوصة)
B12: الوزن الحيوي المقدر
B28: وزن الجسم المقدر ومؤشر الكتلة والدهون

Sheet إدخال بيانات
C1: متعقب اللياقة البدنية
B2: 69 | H2: الاسم | I2: جاكلين حداد
H3: الطول | I3: =INT(B2/12)&" أقدام و"&B2-(INT(B2/12)*12)&" بوصات" -> 5 أقدام و9 بوصات
J4: 70
B6: التاريخ | C6: الوزن (بالرطل) | D6: الصدر | E6: الخصر | F6: الأرداف | G6: المعصم | H6: الساعد | I6: الوزن الحيوي | J6: وزن الدهون في الجسم | K6: نسبة الدهون في الجسم | L6: مؤشر كتلة الجسم (BMI)
B7: 2012-06-09 | C7: 140.0 | D7: 32.0 | E7: 31.0 | F7: 40.0 | G7: 6.8 | H7: 11.5 | I7: =IF(Data[[#This Row],[الوزن (بالرطل)]]="","",((Data[[#This Row],[الوزن (بالرطل)]]*0.732)+ 8.987)+(Data[[#This Row],[المعصم]]/3.14)-(Data[[#This Row],[الخصر]]*0.157)-(Data[[#This Row],[الأرداف]]*0.249)+(Data[[#This Row],[الساعد]]*0.434)) -> 103.80 | J7: =IFERROR(Data[[#This Row],[الوزن (بالرطل)]]-Data[[#This Row],[الوزن الحيوي]],"") -> 36.20 | K7: =IFERROR((Data[[#This Row],[وزن الدهون في الجسم]]*100)/Data[[#This Row],[الوزن (بالرطل)]],"") -> 25.86 | L7: =(Data[[#This Row],[الوزن (بالرطل)]]/TotalInches/TotalInches)*703 -> 20.09
B8: 2012-06-10 | C8: 140.0 | D8: 32.0 | E8: 31.0 | F8: 39.5 | G8: 6.7 | H8: 11.5 | I8: =IF(Data[[#This Row],[الوزن (بالرطل)]]="","",((Data[[#This Row],[الوزن (بالرطل)]]*0.732)+ 8.987)+(Data[[#This Row],[المعصم]]/3.14)-(Data[[#This Row],[الخصر]]*0.157)-(Data[[#This Row],[الأرداف]]*0.249)+(Data[[#This Row],[الساعد]]*0.434)) -> 103.89 | J8: =IFERROR(Data[[#This Row],[الوزن (بالرطل)]]-Data[[#This Row],[الوزن الحيوي]],"") -> 36.11 | K8: =IFERROR((Data[[#This Row],[وزن الدهون في الجسم]]*100)/Data[[#This Row],[الوزن (بالرطل)]],"") -> 25.79 | L8: =(Data[[#This Row],[الوزن (بالرطل)]]/TotalInches/TotalInches)*703 -> 20.09
B9: 2012-06-11 | C9: 139.0 | D9: 32.0 | E9: 31.0 | F9: 39.5 | G9: 6.7 | H9: 11.5 | I9: =IF(Data[[#This Row],[الوزن (بالرطل)]]="","",((Data[[#This Row],[الوزن (بالرطل)]]*0.732)+ 8.987)+(Data[[#This Row],[المعصم]]/3.14)-(Data[[#This Row],[الخصر]]*0.157)-(Data[[#This Row],[الأرداف]]*0.249)+(Data[[#This Row],[الساعد]]*0.434)) -> 103.16 | J9: =IFERROR(Data[[#This Row],[الوزن (بالرطل)]]-Data[[#This Row],[الوزن الحيوي]],"") -> 35.84 | K9: =IFERROR((Data[[#This Row],[وزن الدهون في الجسم]]*100)/Data[[#This Row],[الوزن (بالرطل)]],"") -> 25.79 | L9: =(Data[[#This Row],[الوزن (بالرطل)]]/TotalInches/TotalInches)*703 -> 19.94
B10: 2012-06-12 | C10: 139.0 | D10: 32.0 | E10: 28.0 | F10: 39.0 | G10: 6.3 | H10: 11.0 | I10: =IF(Data[[#This Row],[الوزن (بالرطل)]]="","",((Data[[#This Row],[الوزن (بالرطل)]]*0.732)+ 8.987)+(Data[[#This Row],[المعصم]]/3.14)-(Data[[#This Row],[الخصر]]*0.157)-(Data[[#This Row],[الأرداف]]*0.249)+(Data[[#This Row],[الساعد]]*0.434)) -> 103.41 | J10: =IFERROR(Data[[#This Row],[الوزن (بالرطل)]]-Data[[#This Row],[الوزن الحيوي]],"") -> 35.59 | K10: =IFERROR((Data[[#This Row],[وزن الدهون في الجسم]]*100)/Data[[#This Row],[الوزن (بالرطل)]],"") -> 25.61 | L10: =(Data[[#This Row],[الوزن (بالرطل)]]/TotalInches/TotalInches)*703 -> 19.94
B11: 2012-06-13 | C11: 139.0 | D11: 32.0 | E11: 28.0 | F11: 39.0 | G11: 6.3 | H11: 11.0 | I11: =IF(Data[[#This Row],[الوزن (بالرطل)]]="","",((Data[[#This Row],[الوزن (بالرطل)]]*0.732)+ 8.987)+(Data[[#This Row],[المعصم]]/3.14)-(Data[[#This Row],[الخصر]]*0.157)-(Data[[#This Row],[الأرداف]]*0.249)+(Data[[#This Row],[الساعد]]*0.434)) -> 103.41 | J11: =IFERROR(Data[[#This Row],[الوزن (بالرطل)]]-Data[[#This Row],[الوزن الحيوي]],"") -> 35.59 | K11: =IFERROR((Data[[#This Row],[وزن الدهون في الجسم]]*100)/Data[[#This Row],[الوزن (بالرطل)]],"") -> 25.61 | L11: =(Data[[#This Row],[الوزن (بالرطل)]]/TotalInches/TotalInches)*703 -> 19.94
B12: 2012-06-14 | C12: 138.0 | D12: 32.0 | E12: 28.0 | F12: 39.0 | G12: 6.3 | H12: 11.0 | I12: =IF(Data[[#This Row],[الوزن (بالرطل)]]="","",((Data[[#This Row],[الوزن (بالرطل)]]*0.732)+ 8.987)+(Data[[#This Row],[المعصم]]/3.14)-(Data[[#This Row],[الخصر]]*0.157)-(Data[[#This Row],[الأرداف]]*0.249)+(Data[[#This Row],[الساعد]]*0.434)) -> 102.68 | J12: =IFERROR(Data[[#This Row],[الوزن (بالرطل)]]-Data[[#This Row],[الوزن الحيوي]],"") -> 35.32 | K12: =IFERROR((Data[[#This Row],[وزن الدهون في الجسم]]*100)/Data[[#This Row],[الوزن (بالرطل)]],"") -> 25.60 | L12: =(Data[[#This Row],[الوزن (بالرطل)]]/TotalInches/TotalInches)*703 -> 19.80
B13: 2012-06-15 | C13: 137.0 | D13: 32.0 | E13: 28.0 | F13: 38.0 | G13: 6.3 | H13: 11.0 | I13: =IF(Data[[#This Row],[الوزن (بالرطل)]]="","",((Data[[#This Row],[الوزن (بالرطل)]]*0.732)+ 8.987)+(Data[[#This Row],[المعصم]]/3.14)-(Data[[#This Row],[الخصر]]*0.157)-(Data[[#This Row],[الأرداف]]*0.249)+(Data[[#This Row],[الساعد]]*0.434)) -> 102.19 | J13: =IFERROR(Data[[#This Row],[الوزن (بالرطل)]]-Data[[#This Row],[الوزن الحيوي]],"") -> 34.81 | K13: =IFERROR((Data[[#This Row],[وزن الدهون في الجسم]]*100)/Data[[#This Row],[الوزن (بالرطل)]],"") -> 25.41 | L13: =(Data[[#This Row],[الوزن (بالرطل)]]/TotalInches/TotalInches)*703 -> 19.66
B14: 2012-06-16 | C14: 136.0 | D14: 31.5 | E14: 27.5 | F14: 38.0 | G14: 6.3 | H14: 11.0 | I14: =IF(Data[[#This Row],[الوزن (بالرطل)]]="","",((Data[[#This Row],[الوزن (بالرطل)]]*0.732)+ 8.987)+(Data[[#This Row],[المعصم]]/3.14)-(Data[[#This Row],[الخصر]]*0.157)-(Data[[#This Row],[الأرداف]]*0.249)+(Data[[#This Row],[الساعد]]*0.434)) -> 101.54 | J14: =IFERROR(Data[[#This Row],[الوزن (بالرطل)]]-Data[[#This Row],[الوزن الحيوي]],"") -> 34.46 | K14: =IFERROR((Data[[#This Row],[وزن الدهون في الجسم]]*100)/Data[[#This Row],[الوزن (بالرطل)]],"") -> 25.34 | L14: =(Data[[#This Row],[الوزن (بالرطل)]]/TotalInches/TotalInches)*703 -> 19.51
B15: 2012-06-17 | C15: 135.0 | D15: 31.5 | E15: 27.3 | F15: 37.8 | G15: 6.3 | H15: 10.5 | I15: =IF(Data[[#This Row],[الوزن (بالرطل)]]="","",((Data[[#This Row],[الوزن (بالرطل)]]*0.732)+ 8.987)+(Data[[#This Row],[المعصم]]/3.14)-(Data[[#This Row],[الخصر]]*0.157)-(Data[[#This Row],[الأرداف]]*0.249)+(Data[[#This Row],[الساعد]]*0.434)) -> 100.69 | J15: =IFERROR(Data[[#This Row],[الوزن (بالرطل)]]-Data[[#This Row],[الوزن الحيوي]],"") -> 34.31 | K15: =IFERROR((Data[[#This Row],[وزن الدهون في الجسم]]*100)/Data[[#This Row],[الوزن (بالرطل)]],"") -> 25.41 | L15: =(Data[[#This Row],[الوزن (بالرطل)]]/TotalInches/TotalInches)*703 -> 19.37
B16: 2012-06-18 | C16: 135.0 | D16: 31.5 | E16: 27.0 | F16: 37.0 | G16: 6.3 | H16: 10.5 | I16: =IF(Data[[#This Row],[الوزن (بالرطل)]]="","",((Data[[#This Row],[الوزن (بالرطل)]]*0.732)+ 8.987)+(Data[[#This Row],[المعصم]]/3.14)-(Data[[#This Row],[الخصر]]*0.157)-(Data[[#This Row],[الأرداف]]*0.249)+(Data[[#This Row],[الساعد]]*0.434)) -> 100.92 | J16: =IFERROR(Data[[#This Row],[الوزن (بالرطل)]]-Data[[#This Row],[الوزن الحيوي]],"") -> 34.08 | K16: =IFERROR((Data[[#This Row],[وزن الدهون في الجسم]]*100)/Data[[#This Row],[الوزن (بالرطل)]],"") -> 25.25 | L16: =(Data[[#This Row],[الوزن (بالرطل)]]/TotalInches/TotalInches)*703 -> 19.37
B17: 2012-06-19 | C17: 134.0 | D17: 31.0 | E17: 27.0 | F17: 37.0 | G17: 6.3 | H17: 10.0 | I17: =IF(Data[[#This Row],[الوزن (بالرطل)]]="","",((Data[[#This Row],[الوزن (بالرطل)]]*0.732)+ 8.987)+(Data[[#This Row],[المعصم]]/3.14)-(Data[[#This Row],[الخصر]]*0.157)-(Data[[#This Row],[الأرداف]]*0.249)+(Data[[#This Row],[الساعد]]*0.434)) -> 99.97 | J17: =IFERROR(Data[[#This Row],[الوزن (بالرطل)]]-Data[[#This Row],[الوزن الحيوي]],"") -> 34.03 | K17: =IFERROR((Data[[#This Row],[وزن الدهون في الجسم]]*100)/Data[[#This Row],[الوزن (بالرطل)]],"") -> 25.40 | L17: =(Data[[#This Row],[الوزن (بالرطل)]]/TotalInches/TotalInches)*703 -> 19.22
B18: 2012-06-20 | C18: 133.0 | D18: 31.0 | E18: 27.0 | F18: 37.0 | G18: 6.2 | H18: 10.0 | I18: =IF(Data[[#This Row],[الوزن (بالرطل)]]="","",((Data[[#This Row],[الوزن (بالرطل)]]*0.732)+ 8.987)+(Data[[#This Row],[المعصم]]/3.14)-(Data[[#This Row],[الخصر]]*0.157)-(Data[[#This Row],[الأرداف]]*0.249)+(Data[[#This Row],[الساعد]]*0.434)) -> 99.21 | J18: =IFERROR(Data[[#This Row],[الوزن (بالرطل)]]-Data[[#This Row],[الوزن الحيوي]],"") -> 33.79 | K18: =IFERROR((Data[[#This Row],[وزن الدهون في الجسم]]*100)/Data[[#This Row],[الوزن (بالرطل)]],"") -> 25.41 | L18: =(Data[[#This Row],[الوزن (بالرطل)]]/TotalInches/TotalInches)*703 -> 19.08
B19: 2012-06-21 | C19: 132.0 | D19: 31.0 | E19: 27.0 | F19: 36.0 | G19: 6.2 | H19: 10.0 | I19: =IF(Data[[#This Row],[الوزن (بالرطل)]]="","",((Data[[#This Row],[الوزن (بالرطل)]]*0.732)+ 8.987)+(Data[[#This Row],[المعصم]]/3.14)-(Data[[#This Row],[الخصر]]*0.157)-(Data[[#This Row],[الأرداف]]*0.249)+(Data[[#This Row],[الساعد]]*0.434)) -> 98.72 | J19: =IFERROR(Data[[#This Row],[الوزن (بالرطل)]]-Data[[#This Row],[الوزن الحيوي]],"") -> 33.28 | K19: =IFERROR((Data[[#This Row],[وزن الدهون في الجسم]]*100)/Data[[#This Row],[الوزن (بالرطل)]],"") -> 25.21 | L19: =(Data[[#This Row],[الوزن (بالرطل)]]/TotalInches/TotalInches)*703 -> 18.94
B20: 2012-06-22 | C20: 130.0 | D20: 31.0 | E20: 26.0 | F20: 36.0 | G20: 6.2 | H20: 10.0 | I20: =IF(Data[[#This Row],[الوزن (بالرطل)]]="","",((Data[[#This Row],[الوزن (بالرطل)]]*0.732)+ 8.987)+(Data[[#This Row],[المعصم]]/3.14)-(Data[[#This Row],[الخصر]]*0.157)-(Data[[#This Row],[الأرداف]]*0.249)+(Data[[#This Row],[الساعد]]*0.434)) -> 97.42 | J20: =IFERROR(Data[[#This Row],[الوزن (بالرطل)]]-Data[[#This Row],[الوزن الحيوي]],"") -> 32.58 | K20: =IFERROR((Data[[#This Row],[وزن الدهون في الجسم]]*100)/Data[[#This Row],[الوزن (بالرطل)]],"") -> 25.06 | L20: =(Data[[#This Row],[الوزن (بالرطل)]]/TotalInches/TotalInches)*703 -> 18.65
B21: 2012-06-23 | C21: 130.0 | D21: 31.0 | E21: 26.0 | F21: 36.0 | G21: 6.2 | H21: 10.0 | I21: =IF(Data[[#This Row],[الوزن (بالرطل)]]="","",((Data[[#This Row],[الوزن (بالرطل)]]*0.732)+ 8.987)+(Data[[#This Row],[المعصم]]/3.14)-(Data[[#This Row],[الخصر]]*0.157)-(Data[[#This Row],[الأرداف]]*0.249)+(Data[[#This Row],[الساعد]]*0.434)) -> 97.42 | J21: =IFERROR(Data[[#This Row],[الوزن (بالرطل)]]-Data[[#This Row],[الوزن الحيوي]],"") -> 32.58 | K21: =IFERROR((Data[[#This Row],[وزن الدهون في الجسم]]*100)/Data[[#This Row],[الوزن (بالرطل)]],"") -> 25.06 | L21: =(Data[[#This Row],[الوزن (بالرطل)]]/TotalInches/TotalInches)*703 -> 18.65
B22: 2012-06-24 | C22: 129.0 | D22: 31.0 | E22: 26.0 | F22: 35.0 | G22: 6.0 | H22: 9.5 | I22: =IF(Data[[#This Row],[الوزن (بالرطل)]]="","",((Data[[#This Row],[الوزن (بالرطل)]]*0.732)+ 8.987)+(Data[[#This Row],[المعصم]]/3.14)-(Data[[#This Row],[الخصر]]*0.157)-(Data[[#This Row],[الأرداف]]*0.249)+(Data[[#This Row],[الساعد]]*0.434)) -> 96.65 | J22: =IFERROR(Data[[#This Row],[الوزن (بالرطل)]]-Data[[#This Row],[الوزن الحيوي]],"") -> 32.35 | K22: =IFERROR((Data[[#This Row],[وزن الدهون في الجسم]]*100)/Data[[#This Row],[الوزن (بالرطل)]],"") -> 25.08 | L22: =(Data[[#This Row],[الوزن (بالرطل)]]/TotalInches/TotalInches)*703 -> 18.51
B23: 2012-06-25 | C23: 129.0 | D23: 31.0 | E23: 26.0 | F23: 35.0 | G23: 6.0 | H23: 9.5 | I23: =IF(Data[[#This Row],[الوزن (بالرطل)]]="","",((Data[[#This Row],[الوزن (بالرطل)]]*0.732)+ 8.987)+(Data[[#This Row],[المعصم]]/3.14)-(Data[[#This Row],[الخصر]]*0.157)-(Data[[#This Row],[الأرداف]]*0.249)+(Data[[#This Row],[الساعد]]*0.434)) -> 96.65 | J23: =IFERROR(Data[[#This Row],[الوزن (بالرطل)]]-Data[[#This Row],[الوزن الحيوي]],"") -> 32.35 | K23: =IFERROR((Data[[#This Row],[وزن الدهون في الجسم]]*100)/Data[[#This Row],[الوزن (بالرطل)]],"") -> 25.08 | L23: =(Data[[#This Row],[الوزن (بالرطل)]]/TotalInches/TotalInches)*703 -> 18.51
B24: 2012-06-26 | C24: 129.0 | D24: 31.0 | E24: 26.0 | F24: 35.0 | G24: 6.0 | H24: 9.5 | I24: =IF(Data[[#This Row],[الوزن (بالرطل)]]="","",((Data[[#This Row],[الوزن (بالرطل)]]*0.732)+ 8.987)+(Data[[#This Row],[المعصم]]/3.14)-(Data[[#This Row],[الخصر]]*0.157)-(Data[[#This Row],[الأرداف]]*0.249)+(Data[[#This Row],[الساعد]]*0.434)) -> 96.65 | J24: =IFERROR(Data[[#This Row],[الوزن (بالرطل)]]-Data[[#This Row],[الوزن الحيوي]],"") -> 32.35 | K24: =IFERROR((Data[[#This Row],[وزن الدهون في الجسم]]*100)/Data[[#This Row],[الوزن (بالرطل)]],"") -> 25.08 | L24: =(Data[[#This Row],[الوزن (بالرطل)]]/TotalInches/TotalInches)*703 -> 18.51
B25: 2012-06-27 | C25: 129.0 | D25: 31.0 | E25: 26.0 | F25: 35.0 | G25: 6.0 | H25: 9.5 | I25: =IF(Data[[#This Row],[الوزن (بالرطل)]]="","",((Data[[#This Row],[الوزن (بالرطل)]]*0.732)+ 8.987)+(Data[[#This Row],[المعصم]]/3.14)-(Data[[#This Row],[الخصر]]*0.157)-(Data[[#This Row],[الأرداف]]*0.249)+(Data[[#This Row],[الساعد]]*0.434)) -> 96.65 | J25: =IFERROR(Data[[#This Row],[الوزن (بالرطل)]]-Data[[#This Row],[الوزن الحيوي]],"") -> 32.35 | K25: =IFERROR((Data[[#This Row],[وزن الدهون في الجسم]]*100)/Data[[#This Row],[الوزن (بالرطل)]],"") -> 25.08 | L25: =(Data[[#This Row],[الوزن (بالرطل)]]/TotalInches/TotalInches)*703 -> 18.51
B26: 2012-06-28 | C26: 129.0 | D26: 31.0 | E26: 26.0 | F26: 35.0 | G26: 6.0 | H26: 9.5 | I26: =IF(Data[[#This Row],[الوزن (بالرطل)]]="","",((Data[[#This Row],[الوزن (بالرطل)]]*0.732)+ 8.987)+(Data[[#This Row],[المعصم]]/3.14)-(Data[[#This Row],[الخصر]]*0.157)-(Data[[#This Row],[الأرداف]]*0.249)+(Data[[#This Row],[الساعد]]*0.434)) -> 96.65 | J26: =IFERROR(Data[[#This Row],[الوزن (بالرطل)]]-Data[[#This Row],[الوزن الحيوي]],"") -> 32.35 | K26: =IFERROR((Data[[#This Row],[وزن الدهون في الجسم]]*100)/Data[[#This Row],[الوزن (بالرطل)]],"") -> 25.08 | L26: =(Data[[#This Row],[الوزن (بالرطل)]]/TotalInches/TotalInches)*703 -> 18.51
B27: 2012-06-29 | C27: 129.0 | D27: 31.0 | E27: 26.0 | F27: 35.0 | G27: 6.0 | H27: 9.5 | I27: =IF(Data[[#This Row],[الوزن (بالرطل)]]="","",((Data[[#This Row],[الوزن (بالرطل)]]*0.732)+ 8.987)+(Data[[#This Row],[المعصم]]/3.14)-(Data[[#This Row],[الخصر]]*0.157)-(Data[[#This Row],[الأرداف]]*0.249)+(Data[[#This Row],[الساعد]]*0.434)) -> 96.65 | J27: =IFERROR(Data[[#This Row],[الوزن (بالرطل)]]-Data[[#This Row],[الوزن الحيوي]],"") -> 32.35 | K27: =IFERROR((Data[[#This Row],[وزن الدهون في الجسم]]*100)/Data[[#This Row],[الوزن (بالرطل)]],"") -> 25.08 | L27: =(Data[[#This Row],[الوزن (بالرطل)]]/TotalInches/TotalInches)*703 -> 18.51
